Cogmind - Beta 16 *** ADVENTURER MODE // 2026.01.15 @ 12:11:10 Player: kullre Result: Self-destructed Performance ------------- Evolutions (1) 500 Regions Visited (3) 600 Robots Destroyed (37) 185 Value Destroyed (801) 801 Prototype IDs (0) 0 Alien Tech Used (0) 0 Bonus (-34) -34 TOTAL SCORE: 2052 Bonus ------- Follower Combat Kills 7 Friendly Fire -41 Cogmind --------- Core Integrity 320/400 Matter 342/450 Energy 237/240 System Corruption 0% Temperature Hot (269) Movement Treading (320) Ox2 Location -9/Materials Parts ------- > --- POWER (1) -------- Nuclear Core > --- PROPULSION (2) --- Light Treads Armored Wheel > --- UTILITY (4) ------ Scrap Suit Large Storage Unit Large Matter Pod > --- WEAPON (2) ------- Particle Cannon Grenade Launcher > --- INVENTORY (15) --- Ion Engine Nuclear Core Light Treads Titanium Leg Small Storage Unit Particle Charger Particle Cannon Ion Cannon Assault Rifle Assault Rifle Mining Laser Peak State ------------ > --- POWER ------------ Nuclear Core > --- PROPULSION ------- Armored Wheel Armored Wheel > --- UTILITY ---------- Scrap Suit Large Storage Unit Large Matter Pod > --- WEAPON ----------- Particle Cannon Ion Cannon > --- INVENTORY -------- Ion Engine Light Treads Light Treads Titanium Leg Small Storage Unit Particle Cannon Assault Rifle Assault Rifle Grenade Launcher Mining Laser [Rating: 23] Favorites ----------- Power Nuclear Core Engine Ion Engine Power Core Nuclear Core Propulsion Armored Wheel Treads Light Treads Wheel Armored Wheel Utility Large Storage Unit Device Scrap Suit Storage Large Storage Unit Weapon Particle Cannon Energy Cannon Particle Cannon Ballistic Gun Assault Rifle Launcher Grenade Launcher Special Weapon Mining Laser Build | -11 -10 -10 -9 ------- Run | Yrd Mat Min Mat Slots Evolved 2 | . . . 2 Power . | . . . . Propulsion . | . . . . Utility 2 | . . . 2 Weapon . | . . . . Parts Attached 22 | 6 12 2 2 Power 4 | 1 2 1 . Engine 1 | 1 . . . Core 3 | . 2 1 . Reactor . | . . . . Propulsion 7 | 2 5 . . Treads 2 | . 2 . . Leg . | . . . . Wheel 5 | 2 3 . . Hover . | . . . . Flight . | . . . . Utility 4 | 1 2 . 1 Device 1 | . . . 1 Storage 3 | 1 2 . . Processor . | . . . . Hackware . | . . . . Protection . | . . . . Artifact . | . . . . Weapon 7 | 2 3 1 1 Energy Gun . | . . . . Energy Cannon 3 | . 2 . 1 Ballistic Gun 2 | 2 . . . Ballistic Cannon . | . . . . Launcher 1 | . 1 . . Special Weapon 1 | . . 1 . Impact Weapon . | . . . . Slashing Weapon . | . . . . Piercing Weapon . | . . . . Special Melee Weapon . | . . . . Unidentified Prototypes . | . . . . Parts Lost 1 | . 1 . . Power 1 | . 1 . . Propulsion . | . . . . Utility . | . . . . Weapon . | . . . . Highest Loss Streak 1 | . 1 . . To Critical Strikes . | . . . . Average Backups 8 | . 5 9 10 Power 1 | . . 1 1 Propulsion 2 | . 1 2 2 Utility 1 | . . 1 1 Weapon 3 | . 2 3 5 Tool/Special . | . . . . Unused Backups 3 | . . . 3 Power 1 | . . . 1 Propulsion 1 | . . . 1 Utility 1 | . . . 1 Weapon . | . . . . Tool/Special . | . . . . Average Slot Usage (%) 91 | . 90 100 78 Core 11 | . 10 14 10 Wheel 23 | . 25 28 12 Device 3 | . . . 11 Storage 23 | . 20 28 22 Energy Cannon 17 | . 6 24 20 Ballistic Gun 4 | . 11 . 1 Launcher 3 | . 9 1 . Special Weapon 1 | . . 2 . Peak Build Rating 23 | 6 13 15 23 Average Rating 14 | 3 9 14 21 On Entrance 8 | . 6 13 14 Avg Prop Armor Cover (%) 4 | . . . 4 Naked Turns . | . . . . Heaviest Build 44 | 14 36 38 44 Greatest Support 40 | 26 40 24 24 Greatest Overweight (x) 3 | . 1 1 3 Average Overweight (x) 1 | . . 1 2 Largest Inventory Capacity 15 | 8 15 15 15 Average Capacity 13 | 6 11 15 15 Most Carried 13 | 5 8 12 13 Average Carried 8 | . 5 10 10 Final Capacity 15 | 8 15 15 15 Final Carried 12 | . 7 12 11 Scrap Suit Usage (%) 25 | . . . 94 Parts Cannibalized 1 | . . . 1 Class Distribution -------------------- 100% | Mutant Dominant Class ---------------- Mutant | -10/Materials Mutant | -10/Mines Mutant | -9/Materials Resources | -11 -10 -10 -9 ----------- Run | Yrd Mat Min Mat Matter Collected 855 | 238 290 279 48 Remotely . | . . . . Salvage Created 834 | . 304 138 392 Parts 68 | . 31 13 24 Haulers Intercepted . | . . . . Recyclers Shooed 2 | . 2 . . Parts Field Recycled . | . . . . Retrieved Matter . | . . . . Parts Self-Destructed . | . . . . Prevented . | . . . . Parts Restored . | . . . . Kills | -11 -10 -10 -9 ------- Run | Yrd Mat Min Mat Combat Hostiles Destroyed 29 | . 9 9 11 Guns 3 | . 2 . 1 Cannons 20 | . 4 9 7 AOE 6 | . 3 . 3 Classes Destroyed 5 | . 4 . 1 Builder 3 | . 2 1 . Watcher 5 | . 3 . 2 Swarmer 15 | . 3 8 4 Grunt 13 | . 6 1 6 Sentry 1 | . . . 1 Best Kill Streak 7 | . 5 3 7 Combat Bots Only 6 | . 3 3 6 Max Kills in Single Turn 3 | . 2 2 3 Gunslinging . | . . . . Exploded 3 | . 2 . 3 Melee . | . . . . Uniques/NPCs Destroyed . | . . . . Combat | -11 -10 -10 -9 -------- Run | Yrd Mat Min Mat Hostile Shots Fired 188 | . 34 46 108 Missed 57 | . 9 10 38 Hits 131 | . 25 36 70 Projectile 131 | . 25 36 70 Damage Taken 1179 | . 321 282 576 Core 213 | . 66 67 80 Absorbed by Shields . | . . . . Ignored by Resistances 352 | . 89 84 179 Regen/Repaired (Parts) 135 | . . . 135 Core Remaining (%) 73 | 100 . 46 . Volleys Fired 89 | . 29 27 33 Largest 2 | . 2 2 2 Hottest 168 | . 136 168 136 Shots Fired 155 | . 42 52 61 Gun 25 | . 19 . 6 Cannon 107 | . 15 38 54 Launcher 15 | . 8 6 1 Special 8 | . . 8 . Kinetic 25 | . 19 . 6 Thermal 115 | . 15 46 54 Explosive 15 | . 8 6 1 Electromagnetic . | . . . . Robot Hit Streak 13 | . 9 8 13 Robot Miss Streak 3 | . 3 2 2 Penetration Max . | . . . . Secondary Targets . | . . . . Shots Hit Robots 91 | . 26 23 42 Core Hits 50 | . 19 12 19 Critical Kills . | . . . . Critical Parts Destroyed . | . . . . Critical Strikes . | . . . . Melee Attacks . | . . . . Impact . | . . . . Slashing . | . . . . Piercing . | . . . . Sneak Attacks . | . . . . Combat Hostiles . | . . . . Follow-up Attacks . | . . . . Damage Inflicted 2421 | . 822 560 1039 Guns 226 | . 156 . 70 Cannons 1399 | . 206 448 745 Explosions 608 | . 407 . 201 Melee . | . . . . Ramming 116 | . 53 40 23 Kinetic 226 | . 156 . 70 Thermal 1471 | . 206 520 745 Explosive 608 | . 407 . 201 Electromagnetic . | . . . . Impact . | . . . . Slashing . | . . . . Piercing . | . . . . Highest Corruption 2 | . . 2 . Average Corruption 2 | . . 2 . Corruption Purged . | . . . . Corruption Blocked . | . . . . Effects 6 | . . 6 . Message Errors 2 | . . 2 . Matter Fused 1 | . . 1 . Energy Discharges 1 | . . 1 . Misfires 2 | . . 2 . Overload Shots . | . . . . Overflow Damage 58 | . 39 3 16 Projectiles 5 | . . 3 2 Explosions 40 | . 39 . 1 Melee 13 | . . . 13 Knockbacks . | . . . . Impact . | . . . . Kinetic . | . . . . Secondary . | . . . . Self-Inflicted Damage 121 | . 92 18 11 Shots 3 | . 3 . . Rammed 18 | . 9 8 1 Targets Rammed 18 | . 9 8 1 Kicked . | . . . . Crushed . | . . . . Highest Temperature 423 | . 375 375 423 Average Temperature 138 | . 129 124 158 Received Heat Transfer 473 | . 153 56 264 Effects 10 | . . 3 7 Shutdowns 1 | . . . 1 Interference 8 | . . 2 6 Matter Decay 1 | . . 1 . Siege Activations . | . . . . Martial Activations . | . . . . Shielding Activations . | . . . . Robots Disrupted . | . . . . Combat Hostiles . | . . . . Robots Corrupted . | . . . . Combat Hostiles . | . . . . Parts Fried . | . . . . Impact Corruptions 1 | . . . 1 Robots Melted . | . . . . Combat Hostiles . | . . . . Parts Melted 3 | . . 1 2 Heat Transferred 2629 | . 370 964 1295 Parts Sabotaged . | . . . . Parts Stolen . | . . . . Parts Stripped . | . . . . Power Chain Reactions . | . . . . Alert | -11 -10 -10 -9 ------- Run | Yrd Mat Min Mat Maximum Alert Level . | . . . . Low Security (%) 100 | 100 100 100 100 Level 1 . | . . . . Level 2 . | . . . . Level 3 . | . . . . Level 4 . | . . . . Level 5 . | . . . . High Security . | . . . . Max Security . | . . . . Peak Influence 175 | . 175 80 130 Initial 17 | . . 3 17 Average 34 | . 63 24 20 Influence Increases 926 | . 345 294 287 Destroy 0b10 Robot/C 600 | . 180 200 220 Destroy 0b10 Robot/NC 40 | . 25 5 10 Destroy Leader 120 | . 46 30 44 Allied During Kill 1 | . . 1 . Successful Hack 8 | . 7 . 1 Disable Machine 27 | . 9 18 . Destroy Structure 85 | . 48 25 12 Lose Combat Pursuer 45 | . 30 15 . Influence Decreases 799 | . 335 250 214 Entered New Map 44 | . . 7 37 Time Decay 755 | . 335 243 177 Squads Dispatched 3 | . 2 . 1 Investigation 2 | . 2 . . Extermination . | . . . . Reinforcement 1 | . . . 1 Assault . | . . . . Garrison . | . . . . Intercept . | . . . . Searches Triggered . | . . . . Construction Impeded . | . . . . Haulers Reinforced . | . . . . Active Scanning Responses . | . . . . Cargo Convoy Interrupts . | . . . . Stealth | -11 -10 -10 -9 --------- Run | Yrd Mat Min Mat Distress Signals 7 | . 2 2 3 Communications Jammed . | . . . . Distress Signals . | . . . . Times Spotted 50 | . 14 13 23 Peak Tracking Total 9 | . 4 3 9 Tactical Retreats 2 | . 1 1 . Traps | -11 -10 -10 -9 ------- Run | Yrd Mat Min Mat Traps Triggered 2 | . 2 . . Indirectly . | . . . . Trap Hack Attempts . | . . . . Triggered . | . . . . Disarmed . | . . . . Reprogrammed . | . . . . Reused . | . . . . Traps Extracted . | . . . . Installed . | . . . . Triggered . | . . . . Machines | -11 -10 -10 -9 ---------- Run | Yrd Mat Min Mat Machines Disabled 3 | . 1 2 . Max in Single Turn 1 | . 1 1 . Machines Repaired . | . . . . Machines Dismantled . | . . . . Machines Sabotaged . | . . . . Overloaded Fab Kills . | . . . . Hacking | -11 -10 -10 -9 --------- Run | Yrd Mat Min Mat Machines Accessed 10 | . 4 1 5 Terminals 6 | . 3 . 3 Fabricators . | . . . . Repair Stations 1 | . . . 1 Recycling Units 1 | . 1 . . Scanalyzers 1 | . . . 1 Garrison Access . | . . . . Total Hacks 26 | . 10 1 15 Successful 21 | . 7 1 13 Failed 5 | . 3 . 2 Catastrophic . | . . . . Database Lockouts . | . . . . Manual 2 | . . . 2 Terminals 11 | . 6 . 5 Fabricators . | . . . . Repair Stations 4 | . . . 4 Recycling Units 4 | . 4 . . Scanalyzers 6 | . . . 6 Garrison Access . | . . . . Terminal Hacks 9 | . 5 1 3 Record 1 | . 1 . . Open Door 1 | . . 1 . Emergency Access Points 1 | . 1 . . Alert Level 1 | . 1 . . Maintenance Status 1 | . 1 . . Zone Layout 4 | . 1 . 3 Fabricator Hacks . | . . . . Repair Station Hacks 4 | . . . 4 Scan Component 2 | . . . 2 Repair 2 | . . . 2 Recycling Unit Hacks 2 | . 2 . . Report Inventory 1 | . 1 . . Retrieve Matter 1 | . 1 . . Scanalyzer 6 | . . . 6 Insert Component 1 | . . . 1 Analyze 3 | . . . 3 Retrieve Study 2 | . . . 2 Garrison Access Hacks . | . . . . Unauthorized Hacks . | . . . . Terminals . | . . . . Fabricators . | . . . . Repair Stations . | . . . . Recycling Units . | . . . . Scanalyzers . | . . . . Garrison Access . | . . . . Data Cores Recovered . | . . . . Used . | . . . . Hacking Detections 8 | . 4 . 4 Full Trace Events . | . . . . Feedback Events . | . . . . Feedback Blocked . | . . . . Robot Schematics Acquired . | . . . . Robots Built . | . . . . Authchips . | . . . . Time . | . . . . Total Robot Build Rating . | . . . . Part Schematics Acquired 1 | . . . 1 Parts Built . | . . . . Authchips . | . . . . Time . | . . . . Total Part Build Rating . | . . . . Part Studies Acquired 1 | . . . 1 Parts Repaired 2 | . . . 2 Time 70 | . . . 70 Parts Recycled . | . . . . Recycled Matter . | . . . . Retrieved Matter . | . . . . Retrieved Components . | . . . . Parts Scanalyzed 1 | . . . 1 Part Schematics Acquired 1 | . . . 1 Parts Damaged . | . . . . Bothacking | -11 -10 -10 -9 ------------ Run | Yrd Mat Min Mat Used RIF Installer . | . . . . Robots Hacked . | . . . . Non-combat . | . . . . Combat . | . . . . Robot Hacks Applied . | . . . . Relay Couplers Released . | . . . . Fabnet Peak Effective % . | . . . . Robots Rewired . | . . . . Allies Hacked . | . . . . Hacks Repelled . | . . . . Allies | -11 -10 -10 -9 -------- Run | Yrd Mat Min Mat Total Allies 1 | . . 1 . Largest Group 1 | . . 1 1 Highest-Rated Group 31 | . . 31 31 Highest-Rated Ally 31 | . . 31 31 Total Orders . | . . . . Ally Attacks 13 | . . 13 . Total Damage 126 | . . 126 . Kills 2 | . . 2 . Allies Corrupted . | . . . . Allies Melted . | . . . . Intel | -11 -10 -10 -9 ------- Run | Yrd Mat Min Mat Active Infowar (turns) . | . . . . Robot Analysis Total . | . . . . Derelict Logs Recovered . | . . . . Drone Launches . | . . . . Drone Recoveries . | . . . . Exploration | -11 -10 -10 -9 ------------- Run | Yrd Mat Min Mat Turns Passed 2327 | 54 723 914 636 Spaces Moved 1851 | 57 626 765 403 Core 22 | 22 . . . Treads 34 | . 29 . 5 Legs . | . . . . Wheels 1795 | 35 597 765 398 Hover . | . . . . Flight . | . . . . Fastest Speed 50 | 50 80 105 105 Average Speed 106 | 74 97 105 129 Slowest Speed 240 | 90 160 105 240 Overloaded Moves . | . . . . Propulsion Burnouts . | . . . . Robots Hopped . | . . . . Potential Cave-ins 3 | . . 3 . Cave-ins Triggered . | . . . . Exploration Rate (%) 46 | 4 64 85 32 Regions Visited 3 Branch Regions 1 Pre-discovered Areas . | . . . . Known Exits Taken . | . . . . Unknown Exits Taken 3 | 1 1 1 . Scrap Searched 1 | . . 1 . Spaces Dug . | . . . . Terrain Destroyed 104 | . 51 42 11 Melee . | . . . . Projectile 7 | . . 6 1 AOE 97 | . 51 36 10 Terrain Rammed . | . . . . Walls Destroyed . | . . . . Machines Disabled . | . . . . Actions | -11 -10 -10 -9 --------- Run | Yrd Mat Min Mat Total 2023 | 68 694 808 453 Wait . | . . . . Move 1848 | 56 625 764 403 Hop . | . . . . Pick Up 26 | 6 12 5 3 Fast Attach . | . . . . Attach 14 | 6 4 . 4 Detach 3 | . 2 . 1 Swap 21 | . 10 3 8 Drop 4 | . 3 1 . Fire 89 | . 29 27 33 Melee . | . . . . Ram 18 | . 9 8 1 Kick . | . . . . Crush . | . . . . Escape Stasis . | . . . . Rewire . | . . . . Trap . | . . . . Miscellaneous . | . . . . Route ------- -11/Scrapyard -10/Materials (discovered 3 exits: *Mat x2 / *Min) -10/Mines (discovered 2 exits: *Mat x2) -9/Materials (discovered 1 exit: [*Mat]) History --------- Turn | Location | Event 24 | -11/Scrapyard | Discovered new exit (range 16) 55 | -11/Scrapyard | Entered Materials 200 | -10/Materials | Discovered new exit (range 15) 312 | -10/Materials | Build established: Mutant 363 | -10/Materials | Discovered new exit (range 15) 568 | -10/Materials | Discovered new exit (range 15) 778 | -10/Materials | Entered Mines 829 | -10/Mines | Found a Scrap Suit stashed away for nefarious purposes 845 | -10/Mines | Found Scrap Suit 1005 | -10/Mines | Met a Derelict who couldn't figure out how to use a Trap Extractor 1278 | -10/Mines | Joined a pair of Derelicts in attacking an 0b10 outpost 1514 | -10/Mines | Received a Mining Laser from a helpful Derelict 1590 | -10/Mines | Discovered new exit (range 11) 1616 | -10/Mines | Excavation squad dispatched 1616 | -10/Mines | A large section of the Mines collapsed 1666 | -10/Mines | Discovered new exit (range 8) 1686 | -10/Mines | Core integrity fell below 50% 1692 | -10/Mines | Entered Materials 1692 | -9/Materials | Accompanied by 1 ally 1692 | -9/Materials | Evolved 2 slots: Utility x2 1793 | -9/Materials | Repaired Nuclear Core 1829 | -9/Materials | Repaired Arm. Wheel 2087 | -9/Materials | Discovered new exit (range 17) 2328 | -9/Materials | Self-destructed Last Messages --------------- U-05 Engineer lays Concrete. U-05 Engineer builds a Wall. U-05 Engineer lays Concrete. Power failure, Nuclear Core shutdown. U-05 Engineer builds a Wall. G-34 Mercenary destroyed. U-05 Engineer lays Concrete. Overheating: System interference. Assault Rifle temporarily disabled. U-05 Engineer builds a Wall. U-05 Engineer lays Concrete. K-01 Serf collects debris. W-16 Scout distress signal alerts nearby ally. K-01 Serf collects debris. W-16 Scout destroyed. K-01 Serf collects debris. K-01 Serf destroyed. Overheating: System interference. Grenade Launcher+ temporarily disabled. Particle Cannon temporarily disabled. Map ----- +----------------------------------------------------+ | ????????????????????????????????????????????????? | | ????????????????????????????????????????????????? | | ????????????????????????????????????????????????? | | ????????????????????????????????????????????????? | | ????????????????????????????????????????????????? | | ????????????????????????????????????????????????? | | ????????????????????????????????????????????????? | | ????????????????????????????????????????????????? | | ????????????????????????????????????????????????? | | ????????????????????????????????????????????????? | | ????????????????????????????????????????????????? | | ????????????????????????????????????????????????? | | ????????????????????????????????????????????????? | | ????????????????????????????? ??????????????????? | | ????????????????????????????? #?????????????????? | | ?????????????#??????????????? #?????????????????? | | ?????????????# ????????????? #?????????????????? | | ???????####??# ????????????? #?????????????????? | | ??????# ?# ???????????? #?????????????????? | | ??????# # #?????????? #?????????????????? | | ??????#! + /?????????? ??? #?????????????? | | ??????# # ????????? ??? #?????????????? | | ??????# # ###########+### #####+????????? | | ???????? #%%Y= k * g ???????? | | ????????????##=%[%g %!% s s ???????? | | ????????????## =%!= @ s ???????? | | ????????????## [######### ########??????????????? | | ????????????## ??????###+##########????????????? | | ????????# ### ###### #????????????? | | ???????? # #????????????? | | ???????? T + """ """ #????????????? | | ????????????# #### # """ """ #????????????? | | ????????????????????# # """ """ ??????????????? | | ?????????????????####/###########???????????????? | | ?????????????????# #????????????????????? | | ?????????????????# """ """ #????????????????????? | | ?????????????????# """ """ #????????????????????? | | ?????????????????# """ """ #????????????????????? | | ?????????????????# #????????????????????? | | ?????????????????# ! ! !#????????????????????? | | ?????????????????# ! #????????????????????? | | ?????????????????# #????????????????????? | | ????????##############+########+##??????????????? | | ????????# # // ##?????????????? | | ????????# # // / ??????????? | | ????????# # ##?????????????? | | ????????# + ## ???????? | | ????????# # """"" """"" ## ???????? | | ????????# # """"" """"" "## ???????? | | ????????######## """"" """"" T#####+######### | +----------------------------------------------------+ Best States ------------- Heat Dissipation 28 Energy Generation 14 Energy Capacity 250 Matter Stores 450 Matter Capacity 450 Sight Range 16 Terrain Scan Density 10 Resistance: KI 20 Resistance: TH 20 Resistance: EX 20 Resistance: EM 20 Resistance: I 20 Resistance: S 20 Resistance: P 20 Evasion (%) 50 Recoil Reduction 2 Offensive Hacking 10 Item Schematics ----------------- Grenade Launcher | -9/Materials | Scanalyzed Robot Schematics ------------------ None Fabricated ------------ Nothing Repaired ---------- Nuclear Core | 29% | -9/Materials Arm. Wheel | 19% | -9/Materials Studied --------- Grenade Launcher | -9/Materials | Hacked Alien Tech Used ----------------- None Achievements -------------- None Challenges ------------ None Game ------ Seed ElectronDimensionalBrace Manual? 0 Play Time 00:23:46 Cumulative 2.8 hours Start 2026.01.14 @ 22:11:15 End 2026.01.15 @ 12:11:10 Sessions 3 Manual Loads 0 Difficulty Adventurer Special Mode None Game No. 7 Rogue 0 Adventurer 7 Explorer 0 Win Type - Total 0 Types 0/0/0/0/0/0/0/0/0/0 Lore% 1 Gallery% 5 Achievement% 6 Wizard Run 0 Options --------- Layout 1 ASCII 0 Keyboard 0 Movement Arrows Keybinds 0 Fullscreen 1 Font 24/Smallcaps Map View 50x35 Zoom Use 0% Tactical HUD 0 Map Filters NONE Filters NONE Steam 1 RUN: 3d4512da-f344-422f-84da-0e2a4c451adc